[Event "Titled Tuesday Blitz March 21 Early 2023"]
[White "Kostiukov, Alexandr"]
[Black "Yuan, Qingyu"]
[WhiteFideId "14108100"]
[BlackFideId "8609772"]
[WhiteElo "2202"]
[BlackElo "2359"]
[Result "1/2-1/2"]
[Round "02"]
[TimeControl "180+2"]
[Date "2023.03.21"]
[WhiteClock "0:00:18"]
[BlackClock "0:00:34"]

1. g3 {[%clk 0:03:00]}  d5 {[%clk 0:02:59]} 2. Bg2 {[%clk 0:03:00]}  Nf6 {[%clk 0:03:00]} 3. d3 {[%clk 0:03:00]}  e6 {[%clk 0:03:01]} 4. e4 {[%clk 0:03:01]}  dxe4 {[%clk 0:03:00]} 5. dxe4 {[%clk 0:03:01]}  Qxd1+ {[%clk 0:03:01]} 6. Kxd1 {[%clk 0:03:02]}  Nc6 {[%clk 0:02:57]} 7. f3 {[%clk 0:03:02]}  e5 {[%clk 0:02:48]} 8. Be3 {[%clk 0:03:01]}  Be6 {[%clk 0:02:44]} 9. Nd2 {[%clk 0:03:02]}  O-O-O {[%clk 0:02:39]} 10. Bh3 {[%clk 0:03:02]}  Bxh3 {[%clk 0:02:30]} 11. Nxh3 {[%clk 0:03:02]}  h6 {[%clk 0:02:27]} 12. c3 {[%clk 0:03:00]}  Nd7 {[%clk 0:02:26]} 13. Ke2 {[%clk 0:03:00]}  Bc5 {[%clk 0:02:25]} 14. Nf2 {[%clk 0:03:00]}  Bxe3 {[%clk 0:02:24]} 15. Kxe3 {[%clk 0:03:01]}  Nc5 {[%clk 0:02:25]} 16. Rhd1 {[%clk 0:02:56]}  Na4 {[%clk 0:02:23]} 17. Rab1 {[%clk 0:02:41]}  Rd7 {[%clk 0:02:19]} 18. Nc4 {[%clk 0:02:38]}  Rhd8 {[%clk 0:02:05]} 19. Rxd7 {[%clk 0:02:37]}  Rxd7 {[%clk 0:02:06]} 20. Nd3 {[%clk 0:02:34]}  f6 {[%clk 0:02:04]} 21. f4 {[%clk 0:02:29]}  b5 {[%clk 0:01:54]} 22. Na3 {[%clk 0:02:24]}  a6 {[%clk 0:01:54]} 23. fxe5 {[%clk 0:02:14]}  Nxe5 {[%clk 0:01:51]} 24. Nxe5 {[%clk 0:02:14]}  fxe5 {[%clk 0:01:52]} 25. Nc2 {[%clk 0:02:03]}  Kb7 {[%clk 0:01:51]} 26. Nb4 {[%clk 0:01:55]}  Nc5 {[%clk 0:01:42]} 27. Nc2 {[%clk 0:01:10]}  Rd3+ {[%clk 0:01:34]} 28. Ke2 {[%clk 0:01:09]}  Rd7 {[%clk 0:01:34]} 29. Ke3 {[%clk 0:00:55]}  c6 {[%clk 0:01:31]} 30. Ne1 {[%clk 0:00:54]}  Rf7 {[%clk 0:01:27]} 31. Nf3 {[%clk 0:00:50]}  Rd7 {[%clk 0:01:22]} 32. Nxe5 {[%clk 0:00:42]}  Re7 {[%clk 0:01:22]} 33. Kf4 {[%clk 0:00:37]}  Re8 {[%clk 0:01:17]} 34. Kf5 {[%clk 0:00:32]}  g5 {[%clk 0:00:58]} 35. Nf7 {[%clk 0:00:30]}  Rf8 {[%clk 0:00:46]} 36. Kg6 {[%clk 0:00:25]}  Nxe4 {[%clk 0:00:42]} 37. Re1 {[%clk 0:00:22]}  Nc5 {[%clk 0:00:41]} 38. Kg7 {[%clk 0:00:17]}  Rd8 {[%clk 0:00:39]} 39. Nxd8+ {[%clk 0:00:16]}  Kb6 {[%clk 0:00:40]} 40. b3 {[%clk 0:00:15]}  a5 {[%clk 0:00:38]} 41. Re7 {[%clk 0:00:14]}  b4 {[%clk 0:00:38]} 42. cxb4 {[%clk 0:00:14]}  axb4 {[%clk 0:00:39]} 43. Ne6 {[%clk 0:00:14]}  Ne4 {[%clk 0:00:37]} 44. Nd4 {[%clk 0:00:12]}  Nd6 {[%clk 0:00:38]} 45. Re6 {[%clk 0:00:11]}  Kc5 {[%clk 0:00:35]} 46. Rxh6 {[%clk 0:00:09]}  Kd5 {[%clk 0:00:32]} 47. Rxd6+ {[%clk 0:00:08]}  Kxd6 {[%clk 0:00:32]} 48. h4 {[%clk 0:00:09]}  c5 {[%clk 0:00:33]} 49. Nc2 {[%clk 0:00:07]}  g4 {[%clk 0:00:31]} 50. h5 {[%clk 0:00:08]}  Ke5 {[%clk 0:00:31]} 51. h6 {[%clk 0:00:08]}  Ke4 {[%clk 0:00:32]} 52. h7 {[%clk 0:00:09]}  Kd3 {[%clk 0:00:32]} 53. h8=Q {[%clk 0:00:09]}  Kxc2 {[%clk 0:00:33]} 54. Kg6 {[%clk 0:00:10]}  Kb1 {[%clk 0:00:33]} 55. Qe5 {[%clk 0:00:10]}  Kxa2 {[%clk 0:00:33]} 56. Qxc5 {[%clk 0:00:11]}  Kxb3 {[%clk 0:00:34]} 57. Kg5 {[%clk 0:00:11]}  Ka4 {[%clk 0:00:34]} 58. Kxg4 {[%clk 0:00:11]}  b3 {[%clk 0:00:34]} 59. Qc3 {[%clk 0:00:11]}  Ka3 {[%clk 0:00:34]} 60. Qa1+ {[%clk 0:00:11]}  Kb4 {[%clk 0:00:34]} 61. Qb2 {[%clk 0:00:12]}  Kc4 {[%clk 0:00:35]} 62. Kf4 {[%clk 0:00:13]}  Kd3 {[%clk 0:00:34]} 63. g4 {[%clk 0:00:14]}  Kc4 {[%clk 0:00:35]} 64. g5 {[%clk 0:00:15]}  Kc5 {[%clk 0:00:32]} 65. g6 {[%clk 0:00:16]}  Kc4 {[%clk 0:00:33]} 66. g7 {[%clk 0:00:17]}  Kd3 {[%clk 0:00:34]} 67. g8=Q {[%clk 0:00:18]} 1/2-1/2


[Site "https://www.chess.com"]

[Event "Titled Tuesday Blitz March 21 Early 2023"]
[White "Xu, Daniel"]
[Black "Mahdavi, Reza"]
[WhiteFideId "2627345"]
[BlackFideId "12595926"]
[WhiteElo "1980"]
[BlackElo "2208"]
[Result "0-1"]
[Round "02"]
[TimeControl "180+2"]
[Date "2023.03.21"]
[WhiteClock "0:00:02"]
[BlackClock "0:01:15"]

1. e4 {[%clk 0:03:00]}  c5 {[%clk 0:02:59]} 2. Nf3 {[%clk 0:03:00]}  e6 {[%clk 0:02:53]} 3. d4 {[%clk 0:03:00]}  cxd4 {[%clk 0:02:54]} 4. Nxd4 {[%clk 0:03:00]}  Nc6 {[%clk 0:02:53]} 5. Nc3 {[%clk 0:03:00]}  Qc7 {[%clk 0:02:51]} 6. Be2 {[%clk 0:02:58]}  a6 {[%clk 0:02:51]} 7. O-O {[%clk 0:02:57]}  Nf6 {[%clk 0:02:52]} 8. Be3 {[%clk 0:02:57]}  Be7 {[%clk 0:02:52]} 9. f4 {[%clk 0:02:55]}  d6 {[%clk 0:02:53]} 10. Kh1 {[%clk 0:02:44]}  O-O {[%clk 0:02:52]} 11. Qe1 {[%clk 0:02:41]}  Nxd4 {[%clk 0:02:51]} 12. Bxd4 {[%clk 0:02:41]}  b5 {[%clk 0:02:52]} 13. a3 {[%clk 0:02:40]}  Bb7 {[%clk 0:02:52]} 14. Bd3 {[%clk 0:02:34]}  Rfe8 {[%clk 0:02:53]} 15. e5 {[%clk 0:02:29]}  dxe5 {[%clk 0:02:28]} 16. fxe5 {[%clk 0:02:26]}  Nh5 {[%clk 0:02:29]} 17. Qe2 {[%clk 0:02:01]}  g6 {[%clk 0:02:16]} 18. Ne4 {[%clk 0:02:01]}  Rad8 {[%clk 0:02:14]} 19. c3 {[%clk 0:01:40]}  Bxe4 {[%clk 0:02:03]} 20. Bxe4 {[%clk 0:01:37]}  Bc5 {[%clk 0:02:03]} 21. Bxc5 {[%clk 0:01:23]}  Qxc5 {[%clk 0:02:04]} 22. Qf3 {[%clk 0:01:12]}  Re7 {[%clk 0:01:58]} 23. Rae1 {[%clk 0:01:05]}  Rd2 {[%clk 0:01:51]} 24. b4 {[%clk 0:00:54]}  Qc7 {[%clk 0:01:47]} 25. Bb1 {[%clk 0:00:40]}  Rd8 {[%clk 0:01:36]} 26. Ba2 {[%clk 0:00:31]}  Rc8 {[%clk 0:01:32]} 27. Rc1 {[%clk 0:00:13]}  Qxe5 {[%clk 0:01:30]} 28. c4 {[%clk 0:00:13]}  bxc4 {[%clk 0:01:29]} 29. Bxc4 {[%clk 0:00:13]}  Rec7 {[%clk 0:01:24]} 30. Rce1 {[%clk 0:00:08]}  Qd6 {[%clk 0:01:20]} 31. Bb3 {[%clk 0:00:06]}  Ng7 {[%clk 0:01:16]} 32. Rd1 {[%clk 0:00:03]}  Qe7 {[%clk 0:01:16]} 33. Rfe1 {[%clk 0:00:03]}  Rc3 {[%clk 0:01:16]} 34. Rd3 {[%clk 0:00:02]}  Rc1 {[%clk 0:01:13]} 35. Rdd1 {[%clk 0:00:02]}  Rxd1 {[%clk 0:01:13]} 36. Rxd1 {[%clk 0:00:02]}  Nf5 {[%clk 0:01:14]} 37. g3 {[%clk 0:00:01]}  a5 {[%clk 0:01:14]} 38. bxa5 {[%clk 0:00:01]}  Qxa3 {[%clk 0:01:15]} 39. Bd5 {[%clk 0:00:01]}  Qxa5 {[%clk 0:01:14]} 40. Be4 {[%clk 0:00:01]}  Rc3 {[%clk 0:01:15]} 41. Qg2 {[%clk 0:00:01]}  Ne3 {[%clk 0:01:15]} 42. Qd2 {[%clk 0:00:01]}  Nxd1 {[%clk 0:01:15]} 43. Qxd1 {[%clk 0:00:01]}  Qc7 {[%clk 0:01:15]} 44. Qf3 {[%clk 0:00:01]}  Rxf3 {[%clk 0:01:15]} 45. Kg2 {[%clk 0:00:02]}  Re3 {[%clk 0:01:15]} 0-1


[Site "https://www.chess.com"]

[Event "Titled Tuesday Blitz March 21 Early 2023"]
[White "Hernandez Leon, Alberto"]
[Black "Samunenkov, Ihor"]
[WhiteFideId "2272555"]
[BlackFideId "14187086"]
[WhiteElo "2239"]
[BlackElo "2457"]
[Result "0-1"]
[Round "02"]
[TimeControl "180+2"]
[Date "2023.03.21"]
[WhiteClock "0:00:02"]
[BlackClock "0:00:04"]

1. d4 {[%clk 0:03:00]}  Nf6 {[%clk 0:02:59]} 2. c4 {[%clk 0:03:00]}  e6 {[%clk 0:02:59]} 3. Nf3 {[%clk 0:03:00]}  d5 {[%clk 0:03:00]} 4. g3 {[%clk 0:03:00]}  Be7 {[%clk 0:02:56]} 5. Bg2 {[%clk 0:03:00]}  O-O {[%clk 0:02:57]} 6. O-O {[%clk 0:03:00]}  c6 {[%clk 0:02:58]} 7. Qc2 {[%clk 0:03:00]}  b6 {[%clk 0:02:58]} 8. Nbd2 {[%clk 0:03:00]}  Bb7 {[%clk 0:02:59]} 9. e4 {[%clk 0:03:00]}  Na6 {[%clk 0:03:00]} 10. e5 {[%clk 0:02:57]}  Nd7 {[%clk 0:02:59]} 11. a3 {[%clk 0:02:44]}  c5 {[%clk 0:02:56]} 12. dxc5 {[%clk 0:02:41]}  bxc5 {[%clk 0:02:44]} 13. cxd5 {[%clk 0:02:34]}  exd5 {[%clk 0:02:45]} 14. Rd1 {[%clk 0:02:00]}  Nc7 {[%clk 0:02:35]} 15. Nf1 {[%clk 0:01:52]}  d4 {[%clk 0:02:25]} 16. Ng5 {[%clk 0:01:34]}  Bxg5 {[%clk 0:02:21]} 17. Bxb7 {[%clk 0:01:32]}  Rb8 {[%clk 0:02:18]} 18. Be4 {[%clk 0:01:27]}  Bxc1 {[%clk 0:02:01]} 19. Raxc1 {[%clk 0:01:19]}  g6 {[%clk 0:01:58]} 20. b4 {[%clk 0:01:16]}  Ne6 {[%clk 0:01:50]} 21. bxc5 {[%clk 0:01:10]}  Ndxc5 {[%clk 0:01:51]} 22. f4 {[%clk 0:01:04]}  Qb6 {[%clk 0:00:59]} 23. Kh1 {[%clk 0:00:41]}  Nxe4 {[%clk 0:00:29]} 24. Qxe4 {[%clk 0:00:41]}  Rfd8 {[%clk 0:00:29]} 25. f5 {[%clk 0:00:37]}  Ng5 {[%clk 0:00:23]} 26. Qg2 {[%clk 0:00:15]}  gxf5 {[%clk 0:00:22]} 27. Nd2 {[%clk 0:00:12]}  d3 {[%clk 0:00:17]} 28. Rf1 {[%clk 0:00:12]}  Qe3 {[%clk 0:00:11]} 29. Rce1 {[%clk 0:00:11]}  Qd4 {[%clk 0:00:07]} 30. Rxf5 {[%clk 0:00:11]}  Ne6 {[%clk 0:00:08]} 31. Qf3 {[%clk 0:00:10]}  Rb2 {[%clk 0:00:05]} 32. Ne4 {[%clk 0:00:09]}  d2 {[%clk 0:00:06]} 33. Nf6+ {[%clk 0:00:09]}  Kh8 {[%clk 0:00:06]} 34. Rd1 {[%clk 0:00:10]}  Ng7 {[%clk 0:00:02]} 35. Rh5 {[%clk 0:00:09]}  Nxh5 {[%clk 0:00:02]} 36. Qxh5 {[%clk 0:00:10]}  Kg7 {[%clk 0:00:03]} 37. Qxh7+ {[%clk 0:00:10]}  Kf8 {[%clk 0:00:03]} 38. Qh8+ {[%clk 0:00:07]}  Ke7 {[%clk 0:00:04]} 39. Qg7 {[%clk 0:00:06]}  Qd3 {[%clk 0:00:03]} 40. Ng8+ {[%clk 0:00:03]}  Rxg8 {[%clk 0:00:03]} 41. Qf6+ {[%clk 0:00:04]}  Ke8 {[%clk 0:00:02]} 42. e6 {[%clk 0:00:02]}  Qe4+ {[%clk 0:00:02]} 43. Kg1 {[%clk 0:00:03]}  Qxe6 {[%clk 0:00:02]} 44. Qxb2 {[%clk 0:00:03]}  Qe3+ {[%clk 0:00:03]} 45. Kf1 {[%clk 0:00:01]}  Qf3+ {[%clk 0:00:03]} 46. Kg1 {[%clk 0:00:01]}  Qxd1+ {[%clk 0:00:04]} 47. Kg2 {[%clk 0:00:02]}  Qe2+ {[%clk 0:00:04]} 0-1


[Site "https://www.chess.com"]

[Event "Titled Tuesday Blitz March 21 Early 2023"]
[White "Volkov, Sergey"]
[Black "sebastianmarinp"]
[WhiteFideId "4122763"]
[WhiteElo "2401"]
[BlackElo "2277"]
[Result "1/2-1/2"]
[Round "02"]
[TimeControl "180+2"]
[Date "2023.03.21"]
[WhiteClock "0:00:05"]
[BlackClock "0:00:02"]

1. d4 {[%clk 0:03:00]}  Nf6 {[%clk 0:02:59]} 2. c4 {[%clk 0:03:00]}  e6 {[%clk 0:02:59]} 3. Nc3 {[%clk 0:02:59]}  Bb4 {[%clk 0:02:59]} 4. f3 {[%clk 0:02:59]}  c5 {[%clk 0:02:58]} 5. d5 {[%clk 0:02:57]}  b5 {[%clk 0:02:56]} 6. e4 {[%clk 0:02:56]}  bxc4 {[%clk 0:02:53]} 7. Bxc4 {[%clk 0:02:54]}  Nxd5 {[%clk 0:02:52]} 8. Bxd5 {[%clk 0:02:54]}  exd5 {[%clk 0:02:52]} 9. Qxd5 {[%clk 0:02:54]}  O-O {[%clk 0:02:52]} 10. Qxa8 {[%clk 0:02:31]}  Nc6 {[%clk 0:02:51]} 11. Ne2 {[%clk 0:02:21]}  Qh4+ {[%clk 0:02:25]} 12. g3 {[%clk 0:02:16]}  Qh5 {[%clk 0:02:01]} 13. O-O {[%clk 0:02:03]}  Ba6 {[%clk 0:01:58]} 14. Qxf8+ {[%clk 0:01:59]}  Kxf8 {[%clk 0:01:59]} 15. Rf2 {[%clk 0:01:56]}  Nd4 {[%clk 0:01:35]} 16. Nf4 {[%clk 0:00:35]}  Nxf3+ {[%clk 0:01:14]} 17. Kg2 {[%clk 0:00:32]}  Ne1+ {[%clk 0:01:13]} 18. Kh1 {[%clk 0:00:32]}  Qe5 {[%clk 0:00:51]} 19. Bd2 {[%clk 0:00:18]}  Bxc3 {[%clk 0:00:34]} 20. Bxc3 {[%clk 0:00:18]}  Qxe4+ {[%clk 0:00:34]} 21. Kg1 {[%clk 0:00:18]}  Nf3+ {[%clk 0:00:32]} 22. Kg2 {[%clk 0:00:18]}  Nd4+ {[%clk 0:00:20]} 23. Kh3 {[%clk 0:00:13]}  d6 {[%clk 0:00:11]} 24. Re1 {[%clk 0:00:12]}  Bc8+ {[%clk 0:00:10]} 25. g4 {[%clk 0:00:12]}  Qc6 {[%clk 0:00:05]} 26. Bxd4 {[%clk 0:00:11]}  cxd4 {[%clk 0:00:05]} 27. Kg3 {[%clk 0:00:12]}  Kg8 {[%clk 0:00:03]} 28. h3 {[%clk 0:00:10]}  h6 {[%clk 0:00:03]} 29. Rd2 {[%clk 0:00:10]}  d5 {[%clk 0:00:03]} 30. Rxd4 {[%clk 0:00:10]}  Be6 {[%clk 0:00:03]} 31. Rd3 {[%clk 0:00:08]}  Qd6 {[%clk 0:00:04]} 32. Kf3 {[%clk 0:00:08]}  Bd7 {[%clk 0:00:03]} 33. Rd4 {[%clk 0:00:05]}  Bc6 {[%clk 0:00:03]} 34. Red1 {[%clk 0:00:05]}  Qc5 {[%clk 0:00:03]} 35. R1d2 {[%clk 0:00:05]}  Qa5 {[%clk 0:00:03]} 36. a3 {[%clk 0:00:05]}  Qc5 {[%clk 0:00:02]} 37. Kg2 {[%clk 0:00:05]}  Kh7 {[%clk 0:00:01]} 38. Kf2 {[%clk 0:00:05]}  Qe7 {[%clk 0:00:02]} 39. Kg2 {[%clk 0:00:05]}  Qf6 {[%clk 0:00:02]} 40. Nxd5 {[%clk 0:00:05]}  Qe5 {[%clk 0:00:02]} 41. Kg1 {[%clk 0:00:04]}  Qe1+ {[%clk 0:00:01]} 42. Kg2 {[%clk 0:00:04]}  Qe5 {[%clk 0:00:01]} 43. Kg1 {[%clk 0:00:05]}  Qe1+ {[%clk 0:00:02]} 44. Kg2 {[%clk 0:00:05]}  Qe5 {[%clk 0:00:02]} 1/2-1/2


[Site "https://www.chess.com"]

[Event "Titled Tuesday Blitz March 21 Early 2023"]
[White "Pniaczek, Marek"]
[Black "Kosteniuk, Alexandra"]
[WhiteFideId "21800421"]
[BlackFideId "4128125"]
[WhiteElo "2138"]
[BlackElo "2453"]
[Result "0-1"]
[Round "02"]
[TimeControl "180+2"]
[Date "2023.03.21"]
[WhiteClock "0:00:02"]
[BlackClock "0:00:58"]

1. e4 {[%clk 0:02:57]}  c5 {[%clk 0:02:59]} 2. Nf3 {[%clk 0:02:56]}  Nc6 {[%clk 0:02:59]} 3. d4 {[%clk 0:02:54]}  cxd4 {[%clk 0:02:59]} 4. Nxd4 {[%clk 0:02:55]}  Nf6 {[%clk 0:02:59]} 5. Nc3 {[%clk 0:02:55]}  e5 {[%clk 0:03:00]} 6. Ndb5 {[%clk 0:02:54]}  d6 {[%clk 0:03:00]} 7. Bg5 {[%clk 0:02:53]}  a6 {[%clk 0:03:00]} 8. Bxf6 {[%clk 0:02:47]}  gxf6 {[%clk 0:02:59]} 9. Na3 {[%clk 0:02:48]}  b5 {[%clk 0:02:59]} 10. Nd5 {[%clk 0:02:48]}  f5 {[%clk 0:02:58]} 11. g3 {[%clk 0:02:47]}  f4 {[%clk 0:02:50]} 12. gxf4 {[%clk 0:02:27]}  exf4 {[%clk 0:02:43]} 13. Nxf4 {[%clk 0:02:27]}  Bg7 {[%clk 0:02:40]} 14. c3 {[%clk 0:02:12]}  Qh4 {[%clk 0:02:37]} 15. Qf3 {[%clk 0:01:25]}  Bh6 {[%clk 0:02:17]} 16. Nd5 {[%clk 0:01:11]}  Ne5 {[%clk 0:02:16]} 17. Qg2 {[%clk 0:00:35]}  Bg4 {[%clk 0:02:07]} 18. Be2 {[%clk 0:00:36]}  Bxe2 {[%clk 0:01:53]} 19. Kxe2 {[%clk 0:00:35]}  O-O-O {[%clk 0:01:46]} 20. f3 {[%clk 0:00:27]}  Kb7 {[%clk 0:01:21]} 21. Rad1 {[%clk 0:00:16]}  f5 {[%clk 0:01:13]} 22. Qg1 {[%clk 0:00:14]}  Nd7 {[%clk 0:01:09]} 23. Qf2 {[%clk 0:00:09]}  Qxf2+ {[%clk 0:01:06]} 24. Kxf2 {[%clk 0:00:09]}  fxe4 {[%clk 0:01:06]} 25. fxe4 {[%clk 0:00:10]}  Rhf8+ {[%clk 0:01:05]} 26. Ke2 {[%clk 0:00:10]}  Rde8 {[%clk 0:01:05]} 27. Kd3 {[%clk 0:00:05]}  Nc5+ {[%clk 0:01:04]} 28. Kc2 {[%clk 0:00:05]}  Rxe4 {[%clk 0:01:05]} 29. Rhe1 {[%clk 0:00:03]}  Rf2+ {[%clk 0:01:04]} 30. Kb1 {[%clk 0:00:03]}  Rxe1 {[%clk 0:01:00]} 31. Rxe1 {[%clk 0:00:03]}  Rxb2+ {[%clk 0:00:56]} 32. Kxb2 {[%clk 0:00:01]}  Nd3+ {[%clk 0:00:57]} 33. Kb3 {[%clk 0:00:02]}  Nxe1 {[%clk 0:00:58]} 0-1


[Site "https://www.chess.com"]

[Event "Titled Tuesday Blitz March 21 Early 2023"]
[White "monkins"]
[Black "Preotu, Razvan"]
[BlackFideId "2613280"]
[WhiteElo "2232"]
[BlackElo "2407"]
[Result "1-0"]
[Round "02"]
[TimeControl "180+2"]
[Date "2023.03.21"]
[WhiteClock "0:00:06"]
[BlackClock "0:00:05"]

1. Nf3 {[%clk 0:03:00]}  c5 {[%clk 0:02:59]} 2. c4 {[%clk 0:03:00]}  Nf6 {[%clk 0:02:58]} 3. Nc3 {[%clk 0:02:58]}  d5 {[%clk 0:02:58]} 4. cxd5 {[%clk 0:02:58]}  Nxd5 {[%clk 0:02:59]} 5. d4 {[%clk 0:02:57]}  Nxc3 {[%clk 0:02:58]} 6. bxc3 {[%clk 0:02:57]}  g6 {[%clk 0:02:59]} 7. h4 {[%clk 0:02:47]}  Bg7 {[%clk 0:02:56]} 8. h5 {[%clk 0:02:47]}  Nc6 {[%clk 0:02:44]} 9. h6 {[%clk 0:02:26]}  Bf6 {[%clk 0:02:44]} 10. e3 {[%clk 0:02:26]}  O-O {[%clk 0:02:41]} 11. Be2 {[%clk 0:01:49]}  Bg4 {[%clk 0:01:45]} 12. Qa4 {[%clk 0:01:46]}  a6 {[%clk 0:01:05]} 13. Bd2 {[%clk 0:01:34]}  b5 {[%clk 0:01:05]} 14. Qa3 {[%clk 0:01:34]}  b4 {[%clk 0:01:01]} 15. cxb4 {[%clk 0:01:22]}  cxd4 {[%clk 0:01:01]} 16. Rd1 {[%clk 0:01:12]}  Qb6 {[%clk 0:00:56]} 17. O-O {[%clk 0:00:50]}  Rfd8 {[%clk 0:00:46]} 18. Nxd4 {[%clk 0:00:46]}  Rxd4 {[%clk 0:00:45]} 19. f3 {[%clk 0:00:28]}  Rxd2 {[%clk 0:00:41]} 20. Rxd2 {[%clk 0:00:29]}  Be6 {[%clk 0:00:40]} 21. Rfd1 {[%clk 0:00:25]}  Bg5 {[%clk 0:00:38]} 22. Kf2 {[%clk 0:00:18]}  Bxh6 {[%clk 0:00:18]} 23. g3 {[%clk 0:00:18]}  Qxb4 {[%clk 0:00:15]} 24. Qxb4 {[%clk 0:00:14]}  Nxb4 {[%clk 0:00:16]} 25. Rd8+ {[%clk 0:00:13]}  Rxd8 {[%clk 0:00:16]} 26. Rxd8+ {[%clk 0:00:14]}  Bf8 {[%clk 0:00:14]} 27. a3 {[%clk 0:00:14]}  Nc6 {[%clk 0:00:12]} 28. Ra8 {[%clk 0:00:10]}  a5 {[%clk 0:00:09]} 29. Bb5 {[%clk 0:00:09]}  Bd7 {[%clk 0:00:04]} 30. Ra6 {[%clk 0:00:08]}  Nb8 {[%clk 0:00:04]} 31. Rxa5 {[%clk 0:00:08]}  e6 {[%clk 0:00:02]} 32. a4 {[%clk 0:00:06]}  Bd6 {[%clk 0:00:01]} 33. Ra8 {[%clk 0:00:06]}  Kg7 {[%clk 0:00:01]} 34. Bxd7 {[%clk 0:00:05]}  Nxd7 {[%clk 0:00:01]} 35. Rd8 {[%clk 0:00:06]}  Kf6 {[%clk 0:00:02]} 36. Rxd7 {[%clk 0:00:06]}  Bb4 {[%clk 0:00:03]} 37. Rb7 {[%clk 0:00:05]}  Bc3 {[%clk 0:00:03]} 38. Rb5 {[%clk 0:00:06]}  Ke7 {[%clk 0:00:03]} 39. a5 {[%clk 0:00:06]}  Kd6 {[%clk 0:00:04]} 40. a6 {[%clk 0:00:06]}  Kc6 {[%clk 0:00:05]} 41. Rb3 {[%clk 0:00:06]} 1-0


[Site "https://www.chess.com"]

[Event "Titled Tuesday Blitz March 21 Early 2023"]
[White "Ardila, Oscar Humberto"]
[Black "Csonka, Balazs"]
[WhiteFideId "4404742"]
[BlackFideId "742910"]
[WhiteElo "1911"]
[BlackElo "2404"]
[Result "0-1"]
[Round "02"]
[TimeControl "180+2"]
[Date "2023.03.21"]
[WhiteClock "0:00:46"]
[BlackClock "0:00:13"]

1. d4 {[%clk 0:03:00]}  Nf6 {[%clk 0:02:58]} 2. Nf3 {[%clk 0:03:00]}  g6 {[%clk 0:02:54]} 3. c4 {[%clk 0:02:56]}  Bg7 {[%clk 0:02:54]} 4. Nc3 {[%clk 0:02:56]}  O-O {[%clk 0:02:53]} 5. e3 {[%clk 0:02:56]}  d5 {[%clk 0:02:40]} 6. Be2 {[%clk 0:02:54]}  c5 {[%clk 0:02:39]} 7. dxc5 {[%clk 0:02:51]}  Na6 {[%clk 0:02:30]} 8. O-O {[%clk 0:02:49]}  dxc4 {[%clk 0:02:28]} 9. c6 {[%clk 0:02:42]}  Qc7 {[%clk 0:02:14]} 10. Nd4 {[%clk 0:02:30]}  e5 {[%clk 0:01:45]} 11. cxb7 {[%clk 0:02:29]}  Bxb7 {[%clk 0:01:46]} 12. Ndb5 {[%clk 0:02:29]}  Qc6 {[%clk 0:01:45]} 13. Bf3 {[%clk 0:02:29]}  e4 {[%clk 0:01:44]} 14. Be2 {[%clk 0:02:25]}  Nb4 {[%clk 0:01:41]} 15. Nd4 {[%clk 0:02:22]}  Qc8 {[%clk 0:01:36]} 16. Ncb5 {[%clk 0:02:02]}  Rd8 {[%clk 0:01:27]} 17. Bd2 {[%clk 0:01:59]}  Nd3 {[%clk 0:01:23]} 18. Bc3 {[%clk 0:01:59]}  a6 {[%clk 0:01:13]} 19. Na3 {[%clk 0:01:58]}  Nd5 {[%clk 0:01:10]} 20. Nac2 {[%clk 0:01:31]}  Nxc3 {[%clk 0:00:46]} 21. bxc3 {[%clk 0:01:31]}  a5 {[%clk 0:00:47]} 22. Qd2 {[%clk 0:01:30]}  Qc5 {[%clk 0:00:42]} 23. Rab1 {[%clk 0:01:28]}  Ba6 {[%clk 0:00:42]} 24. f3 {[%clk 0:01:11]}  Bh6 {[%clk 0:00:24]} 25. fxe4 {[%clk 0:01:08]}  Qg5 {[%clk 0:00:22]} 26. Rf3 {[%clk 0:01:03]}  Ne5 {[%clk 0:00:20]} 27. Rg3 {[%clk 0:01:01]}  Qh4 {[%clk 0:00:20]} 28. Nf3 {[%clk 0:00:57]}  Nxf3+ {[%clk 0:00:19]} 29. Bxf3 {[%clk 0:00:58]}  Rxd2 {[%clk 0:00:19]} 30. Na3 {[%clk 0:00:51]}  Bxe3+ {[%clk 0:00:18]} 31. Kh1 {[%clk 0:00:51]}  Rad8 {[%clk 0:00:18]} 32. e5 {[%clk 0:00:50]}  Bc5 {[%clk 0:00:16]} 33. Nb5 {[%clk 0:00:48]}  Bxb5 {[%clk 0:00:15]} 34. e6 {[%clk 0:00:47]}  fxe6 {[%clk 0:00:14]} 35. Rh3 {[%clk 0:00:46]}  Qf4 {[%clk 0:00:13]} 0-1


[Site "https://www.chess.com"]

[Event "Titled Tuesday Blitz March 21 Early 2023"]
[White "Adithya A Chullikkad"]
[Black "Bolourchifard, Farzad"]
[WhiteFideId "45078734"]
[BlackFideId "12510084"]
[WhiteElo "1984"]
[BlackElo "2317"]
[Result "0-1"]
[Round "02"]
[TimeControl "180+2"]
[Date "2023.03.21"]
[WhiteClock "0:00:07"]
[BlackClock "0:00:20"]

1. e4 {[%clk 0:02:40]}  e5 {[%clk 0:03:00]} 2. Nf3 {[%clk 0:02:40]}  Nc6 {[%clk 0:03:00]} 3. Bc4 {[%clk 0:02:38]}  Bc5 {[%clk 0:03:00]} 4. O-O {[%clk 0:02:37]}  Nf6 {[%clk 0:03:00]} 5. c3 {[%clk 0:02:33]}  d6 {[%clk 0:02:59]} 6. d4 {[%clk 0:02:32]}  Bb6 {[%clk 0:03:00]} 7. dxe5 {[%clk 0:02:32]}  Nxe5 {[%clk 0:02:59]} 8. Nxe5 {[%clk 0:02:32]}  dxe5 {[%clk 0:03:00]} 9. Qxd8+ {[%clk 0:02:32]}  Kxd8 {[%clk 0:03:00]} 10. Bg5 {[%clk 0:02:31]}  Ke7 {[%clk 0:03:00]} 11. Nd2 {[%clk 0:02:30]}  Be6 {[%clk 0:03:00]} 12. Bxe6 {[%clk 0:02:30]}  Kxe6 {[%clk 0:03:00]} 13. Bxf6 {[%clk 0:02:29]}  gxf6 {[%clk 0:03:00]} 14. Nc4 {[%clk 0:02:27]}  Bc5 {[%clk 0:02:55]} 15. b4 {[%clk 0:02:27]}  Be7 {[%clk 0:02:51]} 16. Rad1 {[%clk 0:02:27]}  Rhd8 {[%clk 0:02:48]} 17. Ne3 {[%clk 0:02:27]}  Rxd1 {[%clk 0:02:46]} 18. Rxd1 {[%clk 0:02:28]}  a5 {[%clk 0:02:45]} 19. Nf5 {[%clk 0:02:28]}  Bf8 {[%clk 0:02:42]} 20. b5 {[%clk 0:02:22]}  a4 {[%clk 0:02:42]} 21. f3 {[%clk 0:02:13]}  Bc5+ {[%clk 0:02:42]} 22. Kf1 {[%clk 0:02:11]}  a3 {[%clk 0:02:42]} 23. Ke2 {[%clk 0:02:06]}  Bf8 {[%clk 0:02:27]} 24. Ne3 {[%clk 0:02:05]}  Ra5 {[%clk 0:02:21]} 25. Nd5 {[%clk 0:02:01]}  Bd6 {[%clk 0:02:20]} 26. b6 {[%clk 0:02:00]}  c6 {[%clk 0:02:08]} 27. Nxf6 {[%clk 0:02:00]}  Rb5 {[%clk 0:02:06]} 28. Nh5 {[%clk 0:01:29]}  Bf8 {[%clk 0:01:49]} 29. Rd8 {[%clk 0:00:56]}  Rb2+ {[%clk 0:01:39]} 30. Kd3 {[%clk 0:00:50]}  Ke7 {[%clk 0:01:19]} 31. Rb8 {[%clk 0:00:48]}  Rxb6 {[%clk 0:01:19]} 32. Ra8 {[%clk 0:00:43]}  Rb2 {[%clk 0:01:03]} 33. Ng3 {[%clk 0:00:21]}  f6 {[%clk 0:00:43]} 34. Rxa3 {[%clk 0:00:21]}  Rxg2 {[%clk 0:00:37]} 35. Rb3 {[%clk 0:00:20]}  b5 {[%clk 0:00:37]} 36. a4 {[%clk 0:00:20]}  bxa4 {[%clk 0:00:35]} 37. Rb7+ {[%clk 0:00:20]}  Kd6 {[%clk 0:00:36]} 38. Nf5+ {[%clk 0:00:20]}  Kc5 {[%clk 0:00:36]} 39. Rf7 {[%clk 0:00:21]}  Bd6 {[%clk 0:00:33]} 40. Rxf6 {[%clk 0:00:21]}  a3 {[%clk 0:00:31]} 41. Rf7 {[%clk 0:00:14]}  a2 {[%clk 0:00:30]} 42. Ra7 {[%clk 0:00:14]}  Kb6 {[%clk 0:00:29]} 43. Ra4 {[%clk 0:00:11]}  Kb5 {[%clk 0:00:27]} 44. Ra8 {[%clk 0:00:11]}  Bc5 {[%clk 0:00:27]} 45. f4 {[%clk 0:00:10]}  exf4 {[%clk 0:00:26]} 46. e5 {[%clk 0:00:10]}  f3 {[%clk 0:00:26]} 47. Nd6+ {[%clk 0:00:10]}  Kb6 {[%clk 0:00:24]} 48. Rb8+ {[%clk 0:00:07]}  Ka7 {[%clk 0:00:22]} 49. Rb7+ {[%clk 0:00:07]}  Ka6 {[%clk 0:00:22]} 50. e6 {[%clk 0:00:06]}  a1=Q {[%clk 0:00:21]} 51. e7 {[%clk 0:00:07]}  Qd1+ {[%clk 0:00:19]} 52. Kc4 {[%clk 0:00:07]}  Qd5# {[%clk 0:00:20]} 0-1


[Site "https://www.chess.com"]